fUST/lending_fUST_20250817
["ID","MTS","AMOUNT","RATE_DAILY","PERIOD"]
[379719761,1755383456255,-500.0,0.00021573,2]
[379719762,1755383456263,-500.0,0.00021573,2]
[379719763,1755383456272,-500.0,0.00021573,2]
[379719764,1755383456281,-500.0,0.00021573,2]
[379719765,1755383456290,-500.58545385,0.00021573,2]
[379719766,1755383456300,-503.95145406,0.00021573,2]
[379719767,1755383456313,-500.0,0.00021573,2]
[379719768,1755383456323,-158.5737766,0.00021573,2]
[379719769,1755383456332,-258.59425367,0.00021573,2]
[379719770,1755383456341,-500.0,0.00021573,2]
[379719771,1755383456351,-400.45272023,0.00021573,2]
[379719772,1755383456361,-158.58468558,0.00021573,2]
[379719773,1755383456370,-258.63015784,0.00021573,2]
[379719774,1755383456379,-181.22071922,0.00021573,2]
[379719775,1755383456389,-500.0,0.00021573,2]
[379719777,1755383456398,-500.0,0.00021573,2]
[379719778,1755383456407,-160.19341932,0.00021573,2]
[379719780,1755383456417,-341.19863685,0.00021573,2]
[379719782,1755383456426,-158.17436971,0.00021573,2]
[379719784,1755383456436,-160.59508238,0.00021573,2]
[379719786,1755383456445,-500.0,0.00021573,2]
[379719788,1755383456454,-415.28397868,0.00021573,2]
[379719790,1755383456464,-340.37478189,0.00021573,2]
[379719792,1755383456473,-158.58749088,0.00021573,2]
[379719794,1755383456482,-258.62627597,0.00021573,2]
[379719796,1755383456492,-500.0,0.00021573,2]
[379719798,1755383456501,-158.59895642,0.00021573,2]
[379719800,1755383456511,-500.0,0.00021573,2]
[379719802,1755383456520,-160.59564343,0.00021573,2]
[379719804,1755383456530,-500.0,0.00021573,2]
[379719806,1755383456539,-500.0,0.00021573,2]
[379719808,1755383456548,-500.0,0.00021573,2]
[379719810,1755383456558,-411.78390383,0.00021573,2]
[379719812,1755383456567,-500.0,0.00021573,2]
[379719814,1755383456577,-500.0,0.00021573,2]
[379719816,1755383456586,-500.0,0.00021573,2]
[379719818,1755383456596,-500.0,0.00021573,2]
[379719820,1755383456606,-500.0,0.00021573,2]
[379719822,1755383456616,-160.17413587,0.00021573,2]
[379719824,1755383456625,-500.0,0.00021573,2]
[379719826,1755383456636,-500.0,0.00021573,2]
[379719828,1755383456647,-158.59094384,0.00021573,2]
[379719830,1755383456658,-160.18977761,0.00021573,2]
[379719832,1755383456667,-315.67622046,0.00021573,2]
[379719834,1755383456676,-504.38691554,0.00021573,2]
[379719836,1755383456685,-157.59078139,0.00021573,2]
[379719838,1755383456695,-632.78703065,0.00021573,2]
[379719840,1755383456704,-500.0,0.00021573,2]
[379719842,1755383456714,-500.0,0.00021573,2]
[379719844,1755383456723,-500.0,0.00021573,2]
[379719846,1755383456733,-500.0,0.00021573,2]
[379719848,1755383456743,-500.0,0.00021573,2]
[379719850,1755383456752,-500.0,0.00021573,2]
[379719852,1755383456761,-500.0,0.00021573,2]
[379719854,1755383456770,-500.0,0.00021573,2]
[379719855,1755383456780,-500.0,0.00021573,2]
[379719858,1755383456789,-500.0,0.00021573,2]
[379719860,1755383456799,-500.0,0.00021573,2]
[379719862,1755383456807,-500.0,0.00021573,2]
[379719863,1755383456817,-500.0,0.00021573,2]
[379719865,1755383456826,-500.0,0.00021573,2]
[379719867,1755383456836,-500.0,0.00021573,2]
[379719869,1755383456846,-6.64454749,0.00021573,2]
[379719888,1755383457012,-493.35545251,0.00021573,2]
[379719891,1755383457022,-500.0,0.00021573,2]
[379719893,1755383457032,-500.0,0.00021573,2]
[379719895,1755383457042,-500.0,0.00021573,2]
[379719896,1755383457051,-151.16655277,0.00021573,2]
[379719898,1755383457061,-500.0,0.00021573,2]
[379719900,1755383457072,-500.0,0.00021573,2]
[379719902,1755383457092,-93.37533519,0.00021573,2]
[379719904,1755383457115,-406.62466481,0.00021573,2]
[379719906,1755383457126,-500.0,0.00021573,2]
[379719908,1755383457137,-500.0,0.00021573,2]
[379719910,1755383457146,-500.0,0.00021573,2]
[379719912,1755383457155,-500.0,0.00021573,2]
[379719914,1755383457164,-500.0,0.00021573,2]
[379719916,1755383457173,-500.0,0.00021573,2]
[379719918,1755383457183,-525.57279936,0.00021573,2]
[379719919,1755383457196,-500.0,0.00021573,2]
[379719921,1755383457206,-173.68600532,0.00021573,2]
[379719923,1755383457215,-654.1,0.00021584,3]
[379719925,1755383457225,-6809.13653051,0.00021586,2]
[379719928,1755383457238,-11693.55924807,0.00021586,2]
[379719930,1755383457249,-151.0,0.00021586,2]
[379719932,1755383457258,-151.0,0.00021586,2]
[379719934,1755383457267,-151.0,0.000216,3]
[379719935,1755383457277,-4808.18694365,0.00021602,30]
[379719956,1755383457462,-387.67013468,0.00020133,2]
[379719958,1755383457554,-92.32986532,0.00020133,2]
[379719959,1755383457564,-191.81305635,0.00021602,30]
[379719960,1755383457573,-206.0,0.0002162,2]
[379719961,1755383457583,-179.868465,0.000217,4]
[379719962,1755383457592,-271.0,0.0002171,2]
[379719963,1755383457601,-496.0,0.00021734,2]
[379719964,1755383457612,-600.0,0.00021747,2]
[379719965,1755383457621,-172.48783191,0.00021753,2]
[379719966,1755383457630,-676.97,0.00021778,2]
[379719967,1755383457640,-615.55,0.00021778,2]
[379719968,1755383457755,-480.0,0.00021778,2]
[379719969,1755383457779,-634.32,0.00021778,2]
[379719970,1755383457788,-1632.4,0.00021778,2]
[379719971,1755383457798,-2204.33,0.00021778,2]
[379719972,1755383457807,-480.0,0.00021778,2]
[379719973,1755383457817,-1659.35,0.00021778,2]
[379719974,1755383457827,-577.74,0.00021778,2]
[379719975,1755383457837,-524.5,0.00021778,2]
[379719976,1755383457846,-79.34078142,0.00021778,2]
[379720181,1755383460777,454.80469322,0.00020035,4]
[379720307,1755383542772,150.0,0.00019407,2]
[379720321,1755383595740,500.0,0.00019177,2]
[379720329,1755383657223,322.14138739,0.00020035,2]
[379720342,1755383884438,281.87371394,0.00020034,2]
[379720349,1755383963684,322.100658,0.00013699,2]
[379720362,1755384119168,246.63949975,0.00020034,2]
[379720374,1755384376127,215.80956229,0.00020033,2]
[379720376,1755384388941,500.0,0.00019177,2]
[379720447,1755384632662,-300.0,0.0002013,2]
[379720513,1755384633175,-300.0,0.0002013,2]
[379720515,1755384633184,-237.61276329,0.0002013,2]
[379720518,1755384633197,-962.38723671,0.0002013,2]
[379720520,1755384633207,-480.0,0.00020131,2]
[379720522,1755384633217,-651.23,0.00020131,2]
[379720524,1755384633227,-1870.26,0.00020131,2]
[379720525,1755384633237,-123.02477824,0.00020131,2]
[379720528,1755384633248,-356.97522176,0.00020131,2]
[379720530,1755384633258,-480.0,0.00020132,2]
[379720532,1755384633268,-480.0,0.00020132,2]
[379720534,1755384633278,-724.2,0.00020132,2]
[379720536,1755384633287,-1075.23,0.00020132,2]
[379720538,1755384633297,-625.33,0.00020132,2]
[379720540,1755384633307,-297.1093805,0.00020132,2]
[379720542,1755384633316,-480.0,0.00020132,2]
[379720544,1755384633326,-480.0,0.00020132,2]
[379720546,1755384633335,-480.0,0.00020132,2]
[379720547,1755384633344,-580.57,0.00020132,2]
[379720549,1755384633353,-480.0,0.00020132,2]
[379720551,1755384633367,-152.40134819,0.00020132,2]
[379720553,1755384633376,-152.55512621,0.00020132,2]
[379720555,1755384633385,-500.0,0.00020132,2]
[379720557,1755384633395,-480.0,0.00020132,2]
[379720559,1755384633405,-480.0,0.00020132,2]
[379720561,1755384633414,-480.0,0.00020132,2]
[379720563,1755384633423,-507.38,0.00020132,2]
[379720565,1755384633432,-480.0,0.00020132,2]
[379720567,1755384633442,-480.0,0.00020132,2]
[379720568,1755384633451,-1224.3,0.00020132,2]
[379720569,1755384633460,-480.0,0.00020132,2]
[379720570,1755384633469,-480.0,0.00020132,2]
[379720571,1755384633478,-1779.9,0.00020132,2]
[379720572,1755384633488,-480.0,0.00020132,2]
[379720573,1755384633498,-480.0,0.00020132,2]
[379720574,1755384633508,-243.99638212,0.00020132,2]
[379720575,1755384633517,-1333.83,0.00020132,2]
[379720576,1755384633527,-480.0,0.00020132,2]
[379720577,1755384633537,-480.0,0.00020132,2]
[379720578,1755384633547,-480.0,0.00020132,2]
[379720579,1755384633557,-526.37,0.00020132,2]
[379720580,1755384633567,-480.0,0.00020132,2]
[379720581,1755384633576,-604.68,0.00020132,2]
[379720582,1755384633586,-480.0,0.00020132,2]
[379720583,1755384633595,-749.0,0.00020132,2]
[379720584,1755384633605,-480.0,0.00020132,2]
[379720585,1755384633614,-638.32,0.00020132,2]
[379720586,1755384633624,-480.0,0.00020132,2]
[379720587,1755384633633,-632.53,0.00020132,2]
[379720588,1755384633643,-771.65,0.00020132,2]
[379720589,1755384633653,-480.0,0.00020132,2]
[379720590,1755384633843,-632.12,0.00020132,2]
[379720591,1755384633856,-677.61,0.00020132,2]
[379720592,1755384633867,-480.0,0.00020133,2]
[379720593,1755384633877,-480.0,0.00020133,2]
[379720594,1755384633887,-480.0,0.00020133,2]
[379720595,1755384633897,-480.0,0.00020133,2]
[379720596,1755384633907,-480.0,0.00020133,2]
[379720597,1755384633916,-480.0,0.00020133,2]
[379720598,1755384633926,-480.0,0.00020133,2]
[379720599,1755384633936,-493.92,0.00020133,2]
[379720600,1755384633945,-480.0,0.00020133,2]
[379720601,1755384633955,-480.0,0.00020133,2]
[379720602,1755384633964,-3361.5,0.00020133,2]
[379720603,1755384633976,-480.0,0.00020133,2]
[379720604,1755384633986,-480.0,0.00020133,2]
[379720605,1755384633995,-480.0,0.00020133,2]
[379720606,1755384634005,-480.0,0.00020133,2]
[379720607,1755384634014,-480.0,0.00020133,2]
[379720608,1755384634024,-619.47,0.00020133,2]
[379720609,1755384634033,-2213.39,0.00020133,2]
[379720610,1755384634256,-480.0,0.00020133,2]
[379720611,1755384634266,-480.0,0.00020133,2]
[379720612,1755384634275,-1218.45,0.00020133,2]
[379720613,1755384634286,-480.0,0.00020133,2]
[379720614,1755384634297,-846.81,0.00020133,2]
[379720615,1755384634312,-480.0,0.00020133,2]
[379720616,1755384634321,-480.0,0.00020133,2]
[379720617,1755384634331,-406.86450591,0.00020133,2]
[379720618,1755384634340,-480.0,0.00020133,2]
[379720619,1755384634350,-486.79,0.00020133,2]
[379720620,1755384634364,-782.12,0.00020133,2]
[379720621,1755384634374,-480.0,0.00020133,2]
[379720622,1755384634385,-751.0,0.00020133,2]
[379720623,1755384634395,-533.11,0.00020133,2]
[379720624,1755384634407,-480.0,0.00020133,2]
[379720625,1755384634417,-480.0,0.00020133,2]
[379720626,1755384634427,-592.05,0.00020133,2]
[379720627,1755384634438,-5016.47424971,0.00020133,2]
[379720854,1755384640584,-480.0,0.00020131,2]
[379720856,1755384640594,-556.38,0.00020131,2]
[379720858,1755384640603,-2711.02575029,0.00020133,2]
[379720860,1755384640612,-500.0,0.00020133,2]
[379720862,1755384640621,-480.0,0.00020133,2]
[379720864,1755384640630,-480.0,0.00020133,2]
[379720866,1755384640639,-729.14,0.00020133,2]
[379720868,1755384640648,-2304.85,0.00020133,2]
[379720870,1755384640657,-411.47316554,0.00020133,2]
[379720872,1755384640666,-480.0,0.00020133,2]
[379720874,1755384640675,-579.72,0.00020133,2]
[379720876,1755384640685,-480.0,0.00020133,2]
[379720878,1755384640694,-915.52,0.00020133,2]
[379720879,1755384640703,-1231.81,0.00020133,2]
[379720881,1755384640713,-480.0,0.00020134,2]
[379720884,1755384640723,-480.0,0.00020134,2]
[379720886,1755384640733,-480.0,0.00020134,2]
[379720888,1755384640742,-758.09,0.00020134,2]
[379720890,1755384640751,-480.0,0.00020134,2]
[379720892,1755384640760,-480.0,0.00020134,2]
[379720894,1755384640770,-959.57,0.00020134,2]
[379720896,1755384640779,-480.0,0.00020134,2]
[379720898,1755384640788,-480.0,0.00020134,2]
[379720900,1755384640797,-480.0,0.00020134,2]
[379720902,1755384640806,-480.0,0.00020134,2]
[379720904,1755384640815,-480.0,0.00020134,2]
[379720906,1755384640823,-480.0,0.00020134,2]
[379720908,1755384640833,-492.33,0.00020134,2]
[379720910,1755384640842,-671.47,0.00020134,2]
[379720912,1755384640851,-480.0,0.00020134,2]
[379720914,1755384640860,-489.19,0.00020134,2]
[379720916,1755384640868,-1088.56,0.00020134,2]
[379720918,1755384640877,-480.0,0.00020134,2]
[379720920,1755384640886,-728.97,0.00020134,2]
[379720922,1755384640895,-666.75,0.00020134,2]
[379720924,1755384640905,-480.0,0.00020134,2]
[379720926,1755384640914,-480.0,0.00020134,2]
[379720928,1755384640923,-480.0,0.00020134,2]
[379720930,1755384640934,-798.52,0.00020134,2]
[379720932,1755384640943,-480.0,0.00020134,2]
[379720934,1755384640952,-480.0,0.00020134,2]
[379720936,1755384640962,-555.07,0.00020134,2]
[379720938,1755384640971,-480.0,0.00020134,2]
[379720940,1755384640979,-480.0,0.00020134,2]
[379720942,1755384640988,-480.0,0.00020134,2]
[379720944,1755384640997,-480.0,0.00020134,2]
[379720946,1755384641007,-151.83,0.00020134,2]
[379720948,1755384641016,-480.0,0.00020134,2]
[379720950,1755384641025,-480.0,0.00020134,2]
[379720952,1755384641034,-480.0,0.00020134,2]
[379720954,1755384641043,-591.66,0.00020134,2]
[379720956,1755384641052,-480.0,0.00020134,2]
[379720958,1755384641061,-510.49356383,0.00020134,2]
[379720960,1755384641070,-480.0,0.00020135,2]
[379720962,1755384641079,-480.0,0.00020135,2]
[379720964,1755384641088,-505.38,0.00020135,2]
[379720965,1755384641097,-480.0,0.00020135,2]
[379720968,1755384641107,-480.0,0.00020135,2]
[379720970,1755384641116,-480.0,0.00020135,2]
[379720971,1755384641125,-480.0,0.00020135,2]
[379720974,1755384641134,-972.92,0.00020135,2]
[379720975,1755384641143,-6462.12,0.00020135,2]
[379720977,1755384641152,-1372.39,0.00020135,2]
[379720979,1755384641162,-480.0,0.00020135,2]
[379720982,1755384641171,-480.0,0.00020135,2]
[379720984,1755384641180,-480.0,0.00020135,2]
[379720985,1755384641189,-480.0,0.00020135,2]
[379720988,1755384641198,-5106.39,0.00020135,2]
[379720989,1755384641208,-2065.59,0.00020135,2]
[379720991,1755384641217,-480.0,0.00020135,2]
[379720993,1755384641226,-480.0,0.00020136,2]
[379720996,1755384641236,-480.0,0.00020136,2]
[379720997,1755384641245,-480.0,0.00020136,2]
[379721000,1755384641254,-480.0,0.00020136,2]
[379721002,1755384641264,-480.0,0.00020136,2]
[379721003,1755384641273,-480.0,0.00020136,2]
[379721005,1755384641282,-480.0,0.00020136,2]
[379721007,1755384641291,-480.0,0.00020136,2]
[379721010,1755384641301,-480.0,0.00020136,2]
[379721012,1755384641310,-480.0,0.00020136,2]
[379721013,1755384641319,-480.0,0.00020136,2]
[379721015,1755384641328,-480.0,0.00020136,2]
[379721017,1755384641338,-480.0,0.00020136,2]
[379721019,1755384641347,-480.0,0.00020136,2]
[379721022,1755384641356,-414.97117968,0.00020136,2]
[379721023,1755384641369,-853.17,0.00020136,2]
[379721026,1755384641379,-842.13,0.00020136,2]
[379721028,1755384641388,-635.31,0.00020136,2]
[379721029,1755384641397,-480.0,0.00020136,2]
[379721032,1755384641407,-1997.65,0.00020136,2]
[379721034,1755384641415,-322.100658,0.00020187,2]
[379721035,1755384641425,-182.99,0.00020207,3]
[379721037,1755384641435,-151.0,0.00020217,2]
[379721039,1755384641444,-151.0,0.00020217,2]
[379721041,1755384641454,-500.0,0.00020217,2]
[379721042,1755384641463,-3163.78290981,0.00020217,2]
[379721233,1755384643605,-578.19761518,0.00020132,2]
[379721247,1755384643725,-277.90238482,0.00020132,2]
[379721249,1755384643735,-480.0,0.00020133,2]
[379721251,1755384643744,-5124.17310924,0.00020134,2]
[379721253,1755384643756,-1408.79689076,0.00020134,2]
[379721255,1755384643765,-885.10310924,0.00020217,2]
[379721514,1755384646668,-480.0,0.00020132,2]
[379721516,1755384646677,-257.077859,0.00020134,2]
[379721518,1755384646687,-2033.0089699,0.00020217,2]
[379723125,1755384721432,48443.878811,0.00020034,2]
[379723131,1755384748351,541.83829486,0.000189,2]
[379723132,1755384749699,271.0,0.00019922,2]
[379723133,1755384754710,271.0,0.00020053,2]
[379723139,1755384925587,160.0,0.0002,3]
[379723140,1755384941341,500.0,0.00019897,2]
[379723141,1755384944864,472.89231429,0.00020032,2]
[379723142,1755385049537,361.22552991,0.000189,2]
[379723143,1755385055032,298.939447,0.00013699,2]
[379723144,1755385080436,315.26154286,0.00020032,2]
[379723145,1755385160123,246.0072703,0.00019863,2]
[379723146,1755385220707,210.17436192,0.00020031,2]
[379723147,1755385337699,151.0,0.0002779,120]
[379723148,1755385351246,240.81701994,0.000189,2]
[379723149,1755385544309,609.49,0.00019957,2]
[379723150,1755385566330,206.1122364,0.00020034,2]
[379723151,1755385610236,2669.0,0.00019864,2]
[379723153,1755385626963,601.73,0.00019957,2]
[379723160,1755385652575,160.54467996,0.000189,2]
[379723161,1755385714930,594.08,0.00019963,2]
[379723162,1755385763621,257.2709778,0.00027799,120]
[379723164,1755385797694,586.51,0.00019955,2]
[379723166,1755385831869,-300.0,0.00020121,2]
[379723167,1755385831883,-202.11282483,0.00020121,2]
[379723168,1755385831896,-997.88717517,0.00020121,2]
[379723169,1755385831907,-300.0,0.00020121,2]
[379723170,1755385831918,-666.64,0.00020122,3]
[379723172,1755385831930,-333.32,0.00020122,3]
[379723175,1755385831940,-166.66,0.00020122,3]
[379723177,1755385831950,-500.0,0.00020122,3]
[379723178,1755385831960,-560.09,0.00020122,3]
[379723179,1755385831971,-435.6,0.00020122,3]
[379723180,1755385831982,-977.0,0.00020128,2]
[379723181,1755385831992,-480.0,0.00020129,2]
[379723182,1755385832002,-480.0,0.00020129,2]
[379723183,1755385832012,-551.09,0.00020129,2]
[379723184,1755385832021,-607.23,0.00020129,2]
[379723186,1755385832031,-796.43,0.00020129,2]
[379723188,1755385832040,-2081.38,0.00020129,2]
[379723189,1755385832051,-480.0,0.00020129,2]
[379723191,1755385832062,-500.0,0.00020129,2]
[379723193,1755385832072,-500.0,0.00020129,2]
[379723195,1755385832083,-474.24357392,0.00020129,2]
[379723197,1755385832093,-500.0,0.00020129,2]
[379723198,1755385832103,-500.0,0.00020129,2]
[379723200,1755385832113,-500.0,0.00020129,2]
[379723202,1755385832123,-500.0,0.00020129,2]
[379723203,1755385832132,-500.0,0.00020129,2]
[379723205,1755385832142,-515.99283866,0.00020129,2]
[379723207,1755385832151,-480.0,0.0002013,2]
[379723209,1755385832161,-480.0,0.0002013,2]
[379723211,1755385832171,-480.0,0.0002013,2]
[379723212,1755385832181,-480.0,0.0002013,2]
[379723213,1755385832191,-480.0,0.0002013,2]
[379723214,1755385832200,-480.0,0.0002013,2]
[379723215,1755385832210,-480.0,0.0002013,2]
[379723216,1755385832220,-480.0,0.0002013,2]
[379723217,1755385832230,-480.0,0.0002013,2]
[379723218,1755385832239,-480.0,0.0002013,2]
[379723219,1755385832249,-480.0,0.0002013,2]
[379723220,1755385832259,-810.36,0.0002013,2]
[379723221,1755385832269,-480.0,0.0002013,2]
[379723222,1755385832279,-1222.88,0.0002013,2]
[379723223,1755385832289,-703.8,0.0002013,2]
[379723224,1755385832299,-460.0,0.0002013,2]
[379723225,1755385832310,-480.0,0.0002013,2]
[379723226,1755385832320,-480.0,0.0002013,2]
[379723227,1755385832330,-546.9643363,0.0002013,2]
[379723228,1755385832340,-480.0,0.0002013,2]
[379723229,1755385832349,-480.0,0.0002013,2]
[379723230,1755385832359,-495.71208157,0.0002013,2]
[379723231,1755385832368,-480.0,0.0002013,2]
[379723232,1755385832378,-480.0,0.0002013,2]
[379723233,1755385832388,-4377.32,0.0002013,2]
[379723234,1755385832398,-536.46,0.0002013,2]
[379723235,1755385832407,-693.04,0.0002013,2]
[379723236,1755385832417,-636.54,0.0002013,2]
[379723237,1755385832427,-480.0,0.0002013,2]
[379723238,1755385832437,-480.0,0.0002013,2]
[379723239,1755385832447,-480.0,0.0002013,2]
[379723240,1755385832456,-480.0,0.0002013,2]
[379723241,1755385832465,-480.0,0.0002013,2]
[379723242,1755385832475,-721.78,0.0002013,2]
[379723243,1755385832484,-629.73,0.0002013,2]
[379723244,1755385832494,-480.0,0.0002013,2]
[379723245,1755385832504,-480.0,0.0002013,2]
[379723246,1755385832513,-480.0,0.0002013,2]
[379723247,1755385832523,-480.0,0.0002013,2]
[379723248,1755385832532,-480.0,0.0002013,2]
[379723249,1755385832542,-480.0,0.0002013,2]
[379723250,1755385832551,-1542.15,0.0002013,2]
[379723252,1755385832562,-2226.67,0.0002013,2]
[379723254,1755385832572,-480.0,0.0002013,2]
[379723256,1755385832581,-770.9,0.0002013,2]
[379723258,1755385832591,-480.0,0.0002013,2]
[379723260,1755385832601,-796.54,0.0002013,2]
[379723262,1755385832611,-480.0,0.0002013,2]
[379723264,1755385832622,-480.0,0.0002013,2]
[379723266,1755385832632,-565.34,0.0002013,2]
[379723268,1755385832642,-480.0,0.0002013,2]
[379723270,1755385832652,-1653.75,0.0002013,2]
[379723272,1755385832662,-558.56,0.0002013,2]
[379723274,1755385832673,-480.0,0.0002013,2]
[379723276,1755385832683,-549.41,0.0002013,2]
[379723278,1755385832692,-515.0278845,0.0002013,2]
[379723280,1755385832705,-442.5182,0.0002013,2]
[379723283,1755385832717,-1032.61708873,0.0002013,2]
[379723285,1755385832729,-417.88717517,0.0002013,2]
[379723287,1755385832741,-213.2896516,0.0002013,2]
[379723289,1755385832751,-480.0,0.0002013,2]
[379723291,1755385832762,-480.0,0.0002013,2]
[379723293,1755385832772,-480.0,0.0002013,2]
[379723295,1755385832782,-422.70042111,0.0002013,2]
[379723297,1755385832792,-480.0,0.0002013,2]
[379723299,1755385832802,-480.0,0.0002013,2]
[379723302,1755385832812,-480.0,0.0002013,2]
[379723304,1755385832822,-480.0,0.0002013,2]
[379723305,1755385832831,-500.0,0.0002013,2]
[379723306,1755385832840,-480.0,0.0002013,2]
[379723307,1755385832849,-377.19359261,0.0002013,2]
[379723430,1755385838078,-102.80640739,0.0002013,2]
[379723431,1755385838088,-480.0,0.0002013,2]
[379723432,1755385838097,-753.82,0.0002013,2]
[379723433,1755385838107,-480.0,0.0002013,2]
[379723434,1755385838116,-671.58,0.0002013,2]
[379723435,1755385838126,-480.0,0.0002013,2]
[379723436,1755385838136,-480.0,0.0002013,2]
[379723437,1755385838146,-480.0,0.0002013,2]
[379723438,1755385838155,-480.0,0.0002013,2]
[379723439,1755385838164,-938.46,0.0002013,2]
[379723440,1755385838173,-480.0,0.0002013,2]
[379723441,1755385838183,-480.0,0.0002013,2]
[379723442,1755385838193,-480.0,0.0002013,2]
[379723443,1755385838202,-778.72,0.0002013,2]
[379723444,1755385838211,-814.12,0.0002013,2]
[379723445,1755385838221,-480.0,0.0002013,2]
[379723446,1755385838230,-654.55,0.0002013,2]
[379723447,1755385838240,-480.0,0.0002013,2]
[379723448,1755385838249,-923.72,0.00020131,2]
[379723449,1755385838259,-480.0,0.00020131,2]
[379723450,1755385838268,-480.0,0.00020131,2]
[379723451,1755385838277,-480.0,0.00020131,2]
[379723452,1755385838286,-1069.56,0.00020131,2]
[379723453,1755385838296,-480.0,0.00020131,2]
[379723454,1755385838305,-151.0,0.00020131,2]
[379723455,1755385838316,-151.0,0.00020131,2]
[379723456,1755385838327,-483.02,0.00020131,2]
[379723457,1755385838336,-520.44,0.00020131,2]
[379723458,1755385838345,-151.35984124,0.00020131,2]
[379723459,1755385838355,-151.0,0.00020131,2]
[379723460,1755385838364,-151.0,0.00020131,2]
[379723461,1755385838373,-709.55,0.00020131,2]
[379723462,1755385838383,-151.0,0.00020131,2]
[379723463,1755385838393,-151.0,0.00020131,2]
[379723464,1755385838403,-151.0,0.00020131,2]
[379723465,1755385838412,-151.0,0.00020131,2]
[379723466,1755385838422,-159.5875323,0.00020131,2]
[379723467,1755385838432,-512.26,0.00020131,2]
[379723468,1755385838441,-1150.28,0.00020131,2]
[379723469,1755385838451,-480.0,0.00020131,2]
[379723470,1755385838460,-702.82,0.00020131,2]
[379723471,1755385838470,-480.0,0.00020131,2]
[379723472,1755385838480,-480.0,0.00020131,2]
[379723473,1755385838490,-1331.81,0.00020131,2]
[379723474,1755385838500,-635.95,0.00020131,2]
[379723475,1755385838510,-931.96,0.00020131,2]
[379723476,1755385838520,-480.0,0.00020131,2]
[379723477,1755385838529,-545.46,0.00020131,2]
[379723478,1755385838539,-504.06,0.00020131,2]
[379723479,1755385838549,-480.0,0.00020131,2]
[379723480,1755385838559,-2449.06,0.00020131,2]
[379723481,1755385838570,-893.39,0.00020131,2]
[379723482,1755385838580,-480.0,0.00020131,2]
[379723483,1755385838589,-480.0,0.00020131,2]
[379723484,1755385838599,-480.0,0.00020131,2]
[379723485,1755385838609,-590.25,0.00020131,2]
[379723486,1755385838619,-870.59,0.00020131,2]
[379723487,1755385838630,-436.36674258,0.00020131,2]
[379723488,1755385838640,-480.0,0.00020131,2]
[379723489,1755385838650,-480.0,0.00020131,2]
[379723491,1755385838659,-480.0,0.00020131,2]
[379723493,1755385838669,-480.0,0.00020131,2]
[379723495,1755385838683,-782.26,0.00020131,2]
[379723497,1755385838692,-620.8,0.00020131,2]
[379723498,1755385838702,-500.0,0.00020131,2]
[379723499,1755385838712,-229.50116457,0.00020131,2]
[379723500,1755385838722,-7785.62,0.00020131,2]
[379723501,1755385838731,-480.0,0.00020131,2]
[379723502,1755385838741,-151.0,0.00020131,2]